fUST/lending_fUST_20250507
["ID","MTS","AMOUNT","RATE_DAILY","PERIOD"]
[360116123,1746555053927,-502.65057498,0.00019452,2]
[360116124,1746555053942,-1202.38,0.00019452,2]
[360116125,1746555053957,-307.06732803,0.00019452,2]
[360116126,1746555053972,-400.0,0.00019452,2]
[360116127,1746555053987,-400.0,0.00019452,2]
[360116128,1746555054003,-400.0,0.00019452,2]
[360116129,1746555054020,-1713.68,0.00019452,2]
[360116130,1746555054035,-400.0,0.00019452,2]
[360116131,1746555054050,-401.94674852,0.00019452,2]
[360116132,1746555054065,-456.41521488,0.00019452,2]
[360116133,1746555054079,-400.0,0.00019452,2]
[360116134,1746555054095,-400.0,0.00019452,2]
[360116135,1746555054110,-400.0,0.00019452,2]
[360116136,1746555054125,-1815.93,0.00019452,2]
[360116137,1746555054139,-435.44,0.00019452,2]
[360116138,1746555054154,-400.0,0.00019452,2]
[360116139,1746555054169,-400.0,0.00019452,2]
[360116140,1746555054184,-400.0,0.00019452,2]
[360116141,1746555054198,-400.0,0.00019452,2]
[360116142,1746555054213,-400.0,0.00019452,2]
[360116143,1746555054228,-657.42,0.00019452,2]
[360116144,1746555054243,-9056.13,0.00019452,2]
[360116145,1746555054258,-438.48,0.00019452,2]
[360116146,1746555054272,-422.8,0.00019452,2]
[360116147,1746555054287,-735.24,0.00019452,2]
[360116148,1746555054301,-151.0,0.00019452,2]
[360116149,1746555054316,-151.0,0.00019452,2]
[360116150,1746555054331,-400.0,0.00019452,2]
[360116151,1746555054345,-400.0,0.00019452,2]
[360116152,1746555054360,-400.0,0.00019452,2]
[360116153,1746555054375,-2093.85,0.00019452,2]
[360116154,1746555054391,-400.0,0.00019452,2]
[360116155,1746555054408,-400.0,0.00019452,2]
[360116156,1746555054423,-400.0,0.00019452,2]
[360116157,1746555054438,-400.0,0.00019452,2]
[360116158,1746555054453,-400.0,0.00019452,2]
[360116159,1746555054467,-400.0,0.00019452,2]
[360116160,1746555054484,-3107.34,0.00019452,2]
[360116161,1746555054498,-3995.95,0.00019452,2]
[360116162,1746555054510,-1311.27,0.00019452,2]
[360116163,1746555054519,-537.46,0.00019452,2]
[360116164,1746555054529,-408.62378726,0.00019452,2]
[360116165,1746555054538,-400.0,0.00019452,2]
[360116166,1746555054547,-400.0,0.00019452,2]
[360116167,1746555054743,-400.0,0.00019452,2]
[360116168,1746555054757,-400.0,0.00019452,2]
[360116169,1746555054766,-1456.25,0.00019452,2]
[360116170,1746555054777,-400.0,0.00019452,2]
[360116171,1746555054787,-896.18,0.00019452,2]
[360116172,1746555054796,-608.37,0.00019452,2]
[360116173,1746555054806,-151.0,0.00019452,2]
[360116174,1746555054816,-400.0,0.00019452,2]
[360116175,1746555054826,-151.0,0.00019452,2]
[360116176,1746555054836,-400.0,0.00019452,2]
[360116177,1746555054845,-532.07,0.00019452,2]
[360116178,1746555054855,-1064.58,0.00019452,2]
[360116179,1746555054865,-897.74,0.00019452,2]
[360116180,1746555054875,-151.0,0.00019452,2]
[360116181,1746555054884,-205.78195,0.00019452,2]
[360116182,1746555054894,-151.0,0.00019452,2]
[360116183,1746555054904,-400.0,0.00019452,2]
[360116184,1746555054914,-400.0,0.00019452,2]
[360116185,1746555054924,-400.0,0.00019452,2]
[360116186,1746555054934,-400.0,0.00019452,2]
[360116187,1746555054945,-400.0,0.00019452,2]
[360116188,1746555054955,-400.0,0.00019452,2]
[360116189,1746555054964,-613.87,0.00019452,2]
[360116190,1746555054974,-417.87,0.00019452,2]
[360116191,1746555054984,-151.0,0.00019452,2]
[360116192,1746555054994,-400.0,0.00019452,2]
[360116193,1746555055004,-154.228831,0.00019452,2]
[360116194,1746555055014,-3687.73,0.00019452,2]
[360116195,1746555055023,-19307.99,0.00019452,2]
[360116196,1746555055033,-155.760353,0.00019452,2]
[360116197,1746555055042,-162.93695,0.00019452,2]
[360116198,1746555055051,-162.93695,0.00019452,2]
[360116199,1746555055060,-400.0,0.00019452,2]
[360116200,1746555055069,-424.05806894,0.00019452,2]
[360116201,1746555055079,-400.0,0.00019452,2]
[360116202,1746555055088,-403.72300293,0.00019452,2]
[360116203,1746555055097,-400.0,0.00019452,2]
[360116204,1746555055107,-400.0,0.00019452,2]
[360116205,1746555055116,-162.93695,0.00019452,2]
[360116206,1746555055125,-400.0,0.00019452,2]
[360116207,1746555055135,-400.0,0.00019452,2]
[360116208,1746555055145,-162.93695,0.00019452,2]
[360116209,1746555055154,-917.94,0.00019452,2]
[360116210,1746555055163,-404.73978031,0.00019452,2]
[360116211,1746555055173,-400.0,0.00019452,2]
[360116212,1746555055182,-400.0,0.00019452,2]
[360116213,1746555055192,-400.0,0.00019452,2]
[360116214,1746555055204,-400.0,0.00019452,2]
[360116215,1746555055213,-841.77,0.00019452,2]
[360116216,1746555055223,-407.394944,0.00019452,2]
[360116217,1746555055233,-406.5313941,0.00019452,2]
[360116218,1746555055244,-1481.29,0.00019452,2]
[360116219,1746555055254,-220.64867925,0.00019452,2]
[360116220,1746555055264,-153.2741125,0.00019452,2]
[360116221,1746555055273,-400.0,0.00019452,2]
[360116222,1746555055283,-400.0,0.00019452,2]
[360116223,1746555055293,-3620.9,0.00019452,2]
[360116224,1746555055303,-400.0,0.00019452,2]
[360116225,1746555055312,-400.0,0.00019452,2]
[360116226,1746555055321,-934.45,0.00019452,2]
[360116227,1746555055330,-400.0,0.00019452,2]
[360116228,1746555055341,-400.0,0.00019452,2]
[360116229,1746555055352,-2299.36,0.00019452,2]
[360116230,1746555055361,-400.0,0.00019452,2]
[360116231,1746555055370,-1466.55,0.00019452,2]
[360116232,1746555055380,-405.2688485,0.00019452,2]
[360116233,1746555055389,-400.0,0.00019452,2]
[360116234,1746555055398,-400.0,0.00019452,2]
[360116235,1746555055408,-400.0,0.00019452,2]
[360116236,1746555055417,-400.0,0.00019452,2]
[360116237,1746555055426,-400.0,0.00019452,2]
[360116238,1746555055436,-400.0,0.00019452,2]
[360116239,1746555055445,-1755.77,0.00019452,2]
[360116240,1746555055454,-505.17156563,0.00019452,2]
[360116241,1746555055463,-400.0,0.00019452,2]
[360116242,1746555055472,-1499.83,0.00019452,2]
[360116243,1746555055481,-163.4935406,0.00019452,2]
[360116244,1746555055490,-365.92022932,0.00019452,2]
[360116245,1746555055500,-400.0,0.00019452,2]
[360116246,1746555055509,-400.0,0.00019452,2]
[360116247,1746555055518,-400.0,0.00019452,2]
[360116248,1746555055528,-998.0,0.00019452,2]
[360116249,1746555055537,-400.0,0.00019452,2]
[360116250,1746555055546,-2816.34,0.00019452,2]
[360116251,1746555055556,-400.0,0.00019452,2]
[360116252,1746555055565,-400.0,0.00019452,2]
[360116253,1746555055574,-400.0,0.00019452,2]
[360116254,1746555055584,-2880.62,0.00019452,2]
[360116255,1746555055594,-400.0,0.00019452,2]
[360116256,1746555055603,-307.28029054,0.00019452,2]
[360116257,1746555055613,-151.0,0.00019452,2]
[360116258,1746555055622,-8873.46,0.00019452,2]
[360116259,1746555055631,-400.0,0.00019452,2]
[360116260,1746555055640,-3310.84,0.00019452,2]
[360116261,1746555055650,-400.0,0.00019452,2]
[360116262,1746555055659,-400.0,0.00019452,2]
[360116263,1746555055668,-400.0,0.00019452,2]
[360116264,1746555055678,-400.0,0.00019452,2]
[360116265,1746555055687,-400.0,0.00019452,2]
[360116266,1746555055697,-402.30534856,0.00019452,2]
[360116267,1746555055706,-233.76033808,0.00019452,2]
[360116268,1746555055715,-427.19,0.00019452,2]
[360116269,1746555055726,-403.16813055,0.00019452,2]
[360116270,1746555055739,-1367.64,0.00019452,2]
[360116271,1746555055749,-400.0,0.00019452,2]
[360116272,1746555055758,-400.0,0.00019452,2]
[360116273,1746555055767,-442.77,0.00019452,2]
[360116274,1746555055777,-400.0,0.00019452,2]
[360116275,1746555055786,-1625.12,0.00019452,2]
[360116276,1746555055795,-400.0,0.00019452,2]
[360116277,1746555055805,-400.0,0.00019452,2]
[360116278,1746555055814,-400.0,0.00019452,2]
[360116279,1746555055826,-2573.72,0.00019452,2]
[360116280,1746555055835,-433.78,0.00019452,2]
[360116281,1746555055845,-451.19,0.00019452,2]
[360116282,1746555055854,-400.0,0.00019452,2]
[360116283,1746555055863,-400.0,0.00019452,2]
[360116284,1746555055873,-400.0,0.00019452,2]
[360116285,1746555055884,-2645.03,0.00019452,2]
[360116286,1746555055893,-400.0,0.00019452,2]
[360116287,1746555055903,-401.61499065,0.00019452,2]
[360116288,1746555055912,-400.0,0.00019452,2]
[360116289,1746555055922,-400.0,0.00019452,2]
[360116290,1746555055931,-640.19,0.00019452,2]
[360116291,1746555055940,-1358.88,0.00019452,2]
[360116292,1746555055949,-309.69643883,0.00019452,2]
[360116293,1746555055958,-400.0,0.00019452,2]
[360116294,1746555055968,-698.58,0.00019452,2]
[360116295,1746555055978,-400.0,0.00019452,2]
[360116296,1746555055988,-400.0,0.00019452,2]
[360116297,1746555055997,-2451.0,0.00019452,2]
[360116298,1746555056008,-2370.45,0.00019452,2]
[360116299,1746555056017,-400.0,0.00019452,2]
[360116300,1746555056027,-400.0,0.00019452,2]
[360116301,1746555056036,-1234.29,0.00019452,2]
[360116302,1746555056045,-400.0,0.00019452,2]
[360116303,1746555056055,-400.0,0.00019452,2]
[360116304,1746555056064,-400.0,0.00019452,2]
[360116305,1746555056074,-563.92,0.00019452,2]
[360116306,1746555056083,-500.0,0.00019473,2]
[360116307,1746555056093,-557.86665131,0.00019473,2]
[360116308,1746555056102,-500.0,0.00019473,2]
[360116309,1746555056111,-500.0,0.00019473,2]
[360116310,1746555056121,-500.0,0.00019473,2]
[360116311,1746555056130,-500.0,0.00019473,2]
[360116312,1746555056140,-500.0,0.00019473,2]
[360116313,1746555056149,-500.0,0.00019473,2]
[360116314,1746555056159,-500.0,0.00019473,2]
[360116315,1746555056168,-500.0,0.00019473,2]
[360116316,1746555056178,-500.0,0.00019473,2]
[360116317,1746555056187,-615.15714797,0.00019473,2]
[360116318,1746555056197,-500.0,0.00019473,2]
[360116319,1746555056206,-500.0,0.00019473,2]
[360116320,1746555056216,-500.0,0.00019473,2]
[360116321,1746555056225,-500.0,0.00019473,2]
[360116322,1746555056235,-500.0,0.00019473,2]
[360116323,1746555056245,-500.0,0.00019473,2]
[360116324,1746555056254,-500.0,0.00019473,2]
[360116325,1746555056265,-165.91508587,0.00019473,2]
[360116326,1746555056274,-500.0,0.00019473,2]
[360116327,1746555056284,-500.0,0.00019473,2]
[360116328,1746555056294,-500.0,0.00019473,2]
[360116329,1746555056303,-500.0,0.00019473,2]
[360116330,1746555056312,-555.09163379,0.00019473,2]
[360116331,1746555056322,-500.0,0.00019473,2]
[360116332,1746555056332,-500.0,0.00019473,2]
[360116333,1746555056341,-623.87666749,0.00019473,2]
[360116334,1746555056352,-500.0,0.00019473,2]
[360116335,1746555056361,-500.22940159,0.00019473,2]
[360116336,1746555056371,-500.0,0.00019473,2]
[360116337,1746555056380,-500.0,0.00019473,2]
[360116338,1746555056390,-500.0,0.00019473,2]
[360116339,1746555056400,-500.0,0.00019473,2]
[360116340,1746555056410,-500.30224403,0.00019473,2]
[360116341,1746555056420,-500.0,0.00019473,2]
[360116342,1746555056430,-300.0,0.00019473,2]
[360116343,1746555056441,-500.0,0.00019473,2]
[360116344,1746555056451,-500.0,0.00019473,2]
[360116345,1746555056461,-500.0,0.00019473,2]
[360116346,1746555056471,-500.0,0.00019473,2]
[360116347,1746555056480,-500.0,0.00019473,2]
[360116348,1746555056490,-151.94334312,0.00019473,2]
[360116349,1746555056499,-519.60099838,0.00019473,2]
[360116350,1746555056510,-500.55364994,0.00019473,2]
[360116351,1746555056519,-500.34358694,0.00019473,2]
[360116352,1746555056528,-500.0,0.00019473,2]
[360116353,1746555056538,-500.0,0.00019473,2]
[360116354,1746555056547,-502.00234253,0.00019473,2]
[360116355,1746555056557,-500.0,0.00019473,2]
[360116356,1746555056567,-445.44522005,0.00019473,2]
[360116357,1746555056576,-500.0,0.00019473,2]
[360116358,1746555056586,-500.0,0.00019473,2]
[360116359,1746555056596,-500.0,0.00019473,2]
[360116360,1746555056605,-500.0,0.00019473,2]
[360116361,1746555056615,-500.0,0.00019473,2]
[360116362,1746555056625,-500.0,0.00019473,2]
[360116363,1746555056635,-500.0,0.00019473,2]
[360116364,1746555056646,-236.67787335,0.00019473,2]
[360116365,1746555056663,-513.10292408,0.00019473,2]
[360116366,1746555056672,-521.35594741,0.00019473,2]
[360116367,1746555056682,-500.0,0.00019473,2]
[360116368,1746555056692,-500.0,0.00019473,2]
[360116369,1746555056702,-505.99404103,0.00019473,2]
[360116370,1746555056712,-500.34287887,0.00019473,2]
[360116371,1746555056721,-500.0,0.00019473,2]
[360116372,1746555056732,-151.0,0.00019473,2]
[360116373,1746555056742,-5000.0,0.00019581,2]
[360116374,1746555056753,-998.20323418,0.00019588,2]
[360116375,1746555056763,-151.0,0.000196,2]
[360116376,1746555056773,-150.0,0.00019668,2]
[360116377,1746555056783,-150.0,0.00019668,2]
[360116378,1746555056793,-206.009949,0.00019687,2]
[360116379,1746555056802,-1000.0,0.00019687,5]
[360116380,1746555056813,-518.187357,0.00019695,2]
[360116381,1746555056823,-518.187357,0.00019695,2]
[360116382,1746555056832,-151.0,0.00019695,2]
[360116383,1746555056842,-162.93695,0.00019695,2]
[360116384,1746555056851,-162.93695,0.00019695,2]
[360116385,1746555056860,-150.164,0.00019696,2]
[360116386,1746555056870,-150.0,0.00019696,2]
[360116387,1746555056879,-173.365,0.00019696,2]
[360116388,1746555056889,-546.0,0.00019696,2]
[360116389,1746555056900,-2241.0,0.00019696,2]
[360116390,1746555056909,-708.0,0.00019696,2]
[360116391,1746555056919,-133398.71155461,0.00019725,2]
[360116392,1746555057329,-638.791567,0.00019725,2]
[360117421,1746555991753,2000.0,0.00022,30]
[360117428,1746556123252,150.999999,0.0002,120]
[360117452,1746556232188,-3100.7493052,0.00016099,2]
[360117453,1746556232198,-691.8708786,0.00016099,2]
[360117454,1746556232208,-151.0,0.00016472,2]
[360117455,1746556232218,-1200.0,0.00016477,2]
[360117456,1746556232228,-300.0,0.00016478,2]
[360117457,1746556232238,-300.0,0.00016478,2]
[360117458,1746556232248,-300.0,0.00016478,2]
[360117460,1746556232257,-168.0,0.00016478,2]
[360117462,1746556232268,-300.0,0.00016478,2]
[360117464,1746556232279,-2295.57425695,0.00016479,2]
[360117466,1746556232289,-348.66720867,0.00016479,2]
[360117469,1746556232299,-573.46355644,0.00016479,2]
[360117471,1746556232310,-201.4338822,0.00016479,2]
[360117473,1746556232320,-933.46444191,0.00016479,2]
[360117475,1746556232330,-933.46444191,0.00016479,2]
[360117477,1746556232340,-933.46444191,0.00016479,2]
[360117479,1746556232350,-933.46444191,0.00016479,2]
[360117481,1746556232360,-933.46444191,0.00016479,2]
[360117483,1746556232370,-933.46444191,0.00016479,2]
[360117485,1746556232379,-933.46444191,0.00016479,2]
[360117487,1746556232389,-933.46444191,0.00016479,2]
[360117489,1746556232399,-933.46444191,0.00016479,2]
[360117492,1746556232410,-933.46444191,0.00016479,2]
[360117494,1746556232420,-933.46444191,0.00016479,2]
[360117495,1746556232429,-933.46444191,0.00016479,2]
[360117496,1746556232439,-933.46444191,0.00016479,2]
[360117497,1746556232449,-933.46444191,0.00016479,2]
[360117498,1746556232458,-933.46444191,0.00016479,2]
[360117499,1746556232467,-933.46444191,0.00016479,2]
[360117500,1746556232477,-933.46444191,0.00016479,2]
[360117501,1746556232486,-933.46444191,0.00016479,2]
[360117502,1746556232496,-933.46444191,0.00016479,2]
[360117503,1746556232505,-933.46444191,0.00016479,2]
[360117504,1746556232515,-933.46444191,0.00016479,2]
[360117505,1746556232524,-933.46444191,0.00016479,2]
[360117506,1746556232534,-933.46444191,0.00016479,2]
[360117507,1746556232543,-933.46444191,0.00016479,2]
[360117508,1746556232553,-933.46444191,0.00016479,2]
[360117509,1746556232563,-933.46444191,0.00016479,2]
[360117510,1746556232572,-933.46444191,0.00016479,2]
[360117511,1746556232582,-933.46444191,0.00016479,2]
[360117512,1746556232592,-933.46444191,0.00016479,2]
[360117513,1746556232602,-933.46444191,0.00016479,2]
[360117514,1746556232611,-933.46444191,0.00016479,2]
[360117515,1746556232621,-933.46444191,0.00016479,2]
[360117516,1746556232631,-933.46444191,0.00016479,2]
[360117517,1746556232640,-933.46444191,0.00016479,2]
[360117518,1746556232650,-933.46444191,0.00016479,2]
[360117519,1746556232659,-933.46444191,0.00016479,2]
[360117520,1746556232669,-933.46444191,0.00016479,2]
[360117521,1746556232678,-933.46444191,0.00016479,2]
[360117522,1746556232688,-933.46444191,0.00016479,2]
[360117523,1746556232697,-933.46444191,0.00016479,2]
[360117524,1746556232707,-933.46444191,0.00016479,2]
[360117525,1746556232717,-933.46444191,0.00016479,2]
[360117526,1746556232726,-933.46444191,0.00016479,2]
[360117527,1746556232736,-933.46444191,0.00016479,2]
[360117528,1746556232746,-933.46444191,0.00016479,2]
[360117529,1746556232755,-933.46444191,0.00016479,2]
[360117530,1746556232765,-933.46444191,0.00016479,2]
[360117531,1746556232775,-933.46444191,0.00016479,2]
[360117532,1746556232785,-933.46444191,0.00016479,2]
[360117533,1746556232795,-933.46444191,0.00016479,2]
[360117534,1746556232805,-933.46444191,0.00016479,2]
[360117535,1746556232815,-933.46444191,0.00016479,2]
[360117536,1746556232824,-910.12783086,0.00016479,2]
[360117537,1746556232834,-910.12783086,0.00016479,2]
[360117538,1746556232843,-910.12783086,0.00016479,2]
[360117539,1746556232852,-910.12783086,0.00016479,2]
[360117540,1746556232862,-910.12783086,0.00016479,2]
[360117541,1746556232871,-910.12783086,0.00016479,2]
[360117542,1746556232880,-910.12783086,0.00016479,2]
[360117543,1746556232889,-910.12783086,0.00016479,2]
[360117544,1746556232899,-910.12783086,0.00016479,2]
[360117545,1746556232908,-910.12783086,0.00016479,2]
[360117546,1746556232917,-910.12783086,0.00016479,2]
[360117547,1746556232927,-910.12783086,0.00016479,2]
[360117548,1746556232936,-910.12783086,0.00016479,2]
[360117549,1746556232945,-910.12783086,0.00016479,2]
[360117550,1746556232955,-910.12783086,0.00016479,2]
[360117551,1746556232965,-910.12783086,0.00016479,2]
[360117552,1746556232974,-910.12783086,0.00016479,2]
[360117553,1746556232983,-910.12783086,0.00016479,2]
[360117554,1746556232993,-910.12783086,0.00016479,2]
[360117555,1746556233012,-910.12783086,0.00016479,2]
[360117556,1746556233024,-910.12783086,0.00016479,2]
[360117557,1746556233034,-910.12783086,0.00016479,2]
[360117558,1746556233045,-910.12783086,0.00016479,2]
[360117559,1746556233055,-910.12783086,0.00016479,2]
[360117560,1746556233065,-910.12783086,0.00016479,2]
[360117561,1746556233075,-910.12783086,0.00016479,2]
[360117562,1746556233288,-910.12783086,0.00016479,2]
[360117563,1746556233299,-910.12783086,0.00016479,2]
[360117564,1746556233310,-910.12783086,0.00016479,2]
[360117565,1746556233320,-910.12783086,0.00016479,2]
[360117566,1746556233330,-910.12783086,0.00016479,2]
[360117567,1746556233340,-910.12783086,0.00016479,2]
[360117568,1746556233349,-910.12783086,0.00016479,2]
[360117569,1746556233359,-910.12783086,0.00016479,2]
[360117570,1746556233369,-910.12783086,0.00016479,2]
[360117571,1746556233378,-910.12783086,0.00016479,2]
[360117572,1746556233387,-500.0,0.00016483,2]
[360117573,1746556233397,-2436.6918948,0.00016588,2]
[360117574,1746556233407,-5273.77903755,0.00017385,2]
[360117575,1746556233417,-1000.0,0.00017485,2]
[360117576,1746556233427,-4357.82260024,0.000175,2]
[360117577,1746556233437,-152.0,0.00017502,2]
[360117578,1746556233446,-500.55177401,0.00017573,2]
[360117579,1746556233455,-596.32485293,0.00017573,2]
[360117580,1746556233464,-500.0,0.00017573,2]
[360117581,1746556233474,-500.0,0.00017573,2]
[360117582,1746556233484,-500.0,0.00017573,2]
[360117583,1746556233494,-500.0,0.00017573,2]
[360117584,1746556233505,-500.0,0.00017573,2]
[360117585,1746556233514,-505.25690834,0.00017573,2]
[360117586,1746556233526,-500.0,0.00017573,2]
[360117587,1746556233535,-500.0,0.00017573,2]
[360117588,1746556233546,-607.63677205,0.00017573,2]
[360117589,1746556233555,-500.0,0.00017573,2]
[360117590,1746556233565,-400.52105796,0.00017573,2]
[360117591,1746556233575,-500.0,0.00017573,2]
[360117592,1746556233584,-500.0,0.00017573,2]
[360117593,1746556233594,-500.0,0.00017573,2]
[360117594,1746556233604,-165.16602018,0.00017573,2]
[360117595,1746556233614,-500.0,0.00017573,2]
[360117596,1746556233624,-500.0,0.00017573,2]
[360117597,1746556233634,-500.0,0.00017573,2]
[360117598,1746556233643,-503.91393012,0.00017573,2]
[360117599,1746556233653,-500.0,0.00017573,2]
[360117600,1746556233662,-500.0,0.00017573,2]
[360117601,1746556233672,-500.0,0.00017573,2]
[360117602,1746556233681,-500.0,0.00017573,2]
[360117603,1746556233691,-500.0,0.00017573,2]
[360117604,1746556233701,-500.0,0.00017573,2]
[360117605,1746556233710,-425.38354402,0.00017573,2]
[360117606,1746556233720,-500.0,0.00017573,2]
[360117607,1746556233730,-500.0,0.00017573,2]
[360117608,1746556233739,-500.0,0.00017573,2]
[360117609,1746556233749,-500.0,0.00017573,2]
[360117610,1746556233759,-1338.5,0.00017585,3]
[360117611,1746556233768,-669.25,0.00017585,3]
[360117612,1746556233779,-334.63,0.00017585,3]
[360117613,1746556233788,-167.31,0.00017585,3]
[360117614,1746556233797,-501.98,0.00017585,3]
[360117615,1746556233807,-302686.4687656,0.00017595,2]
[360117622,1746556238183,-67313.5312344,0.00017595,2]
[360117624,1746556238198,-2230.17273674,0.000178,2]
[360117626,1746556238213,-206.08427036,0.000179,2]
[360117628,1746556238228,-1462.0008184,0.00017953,2]
[360117629,1746556238242,-250.0,0.00017953,2]
[360117630,1746556238257,-105437.0,0.00018,2]
[360117631,1746556238272,-420.0,0.00018007,2]
[360117632,1746556238287,-1225.0,0.00018096,2]
[360117633,1746556238300,-2230.1727367,0.0001812,2]
[360117634,1746556238315,-151.0,0.000184,2]
[360117635,1746556238330,-2230.1727367,0.00018439,2]
[360117637,1746556238344,-500.0,0.00018493,2]
[360117638,1746556238358,-155.0,0.00018613,2]
[360117639,1746556238373,-614.13335501,0.0001867,2]
[360117640,1746556238386,-151.0,0.000187,2]
[360117641,1746556238401,-171.64579223,0.00018743,2]
[360117642,1746556238415,-856.86547324,0.00018748,2]
[360117643,1746556238429,-2230.1727367,0.00018759,2]
[360117644,1746556238442,-151.0,0.000189,2]
[360117645,1746556238456,-151.0,0.000189,2]
[360117646,1746556238470,-2677.0,0.00018955,3]
[360117647,1746556238484,-1338.5,0.00018955,3]
[360117648,1746556238497,-669.26,0.00018955,3]
[360117649,1746556238510,-334.62,0.00018955,3]
[360117650,1746556238525,-151.0,0.00019,2]
[360117651,1746556238538,-151.0,0.00019,2]
[360117652,1746556238552,-614.13335501,0.00019009,2]
[360117653,1746556238566,-2230.1727367,0.00019078,2]
[360117654,1746556238584,-150.87121571,0.00019078,2]
[360117655,1746556238598,-151.0,0.000191,2]
[360117656,1746556238612,-198467.71371896,0.00019171,2]
[360117657,1746556238626,-500.0,0.00019173,2]
[360117658,1746556238641,-500.0,0.00019173,2]
[360117659,1746556238654,-500.0,0.00019173,2]
[360117660,1746556238668,-500.0,0.00019173,2]
[360117661,1746556238682,-500.0,0.00019173,2]
[360117662,1746556238696,-500.0,0.00019173,2]
[360117663,1746556238710,-557.86665131,0.00019173,2]
[360117664,1746556238723,-500.0,0.00019173,2]
[360117665,1746556238737,-500.0,0.00019173,2]
[360117666,1746556238750,-500.0,0.00019173,2]
[360117667,1746556238764,-500.0,0.00019173,2]
[360117668,1746556238778,-500.0,0.00019173,2]
[360117669,1746556238792,-500.0,0.00019173,2]
[360117670,1746556238806,-500.0,0.00019173,2]
[360117671,1746556238819,-500.0,0.00019173,2]
[360117672,1746556238832,-500.0,0.00019173,2]
[360117673,1746556238846,-500.0,0.00019173,2]
[360117674,1746556238858,-500.0,0.00019173,2]
[360117675,1746556238871,-500.0,0.00019173,2]
[360117676,1746556238884,-500.0,0.00019173,2]
[360117677,1746556238897,-500.0,0.00019173,2]
[360117678,1746556238910,-500.0,0.00019173,2]
[360117679,1746556238924,-304.20896254,0.00019173,2]
[360117680,1746556238936,-500.0,0.00019173,2]
[360117681,1746556238945,-615.15714797,0.00019173,2]
[360117682,1746556238955,-500.0,0.00019173,2]
[360117683,1746556238964,-513.10292408,0.00019173,2]
[360117684,1746556238974,-500.0,0.00019173,2]
[360117685,1746556238984,-445.44522005,0.00019173,2]
[360117686,1746556238993,-500.0,0.00019173,2]
[360117687,1746556239002,-500.22940159,0.00019173,2]
[360117688,1746556239012,-500.0,0.00019173,2]
[360117689,1746556239021,-500.0,0.00019173,2]
[360117690,1746556239032,-500.0,0.00019173,2]
[360117691,1746556239041,-623.87666749,0.00019173,2]
[360117692,1746556239378,-555.09163379,0.00019173,2]
[360117693,1746556239414,-500.34287887,0.00019173,2]
[360117694,1746556239425,-500.0,0.00019173,2]
[360117695,1746556239434,-500.0,0.00019173,2]
[360117696,1746556239443,-500.0,0.00019173,2]
[360117697,1746556239453,-500.0,0.00019173,2]
[360117698,1746556239464,-236.67787335,0.00019173,2]
[360117699,1746556239473,-500.0,0.00019173,2]
[360117700,1746556239482,-500.0,0.00019173,2]
[360117701,1746556239492,-500.0,0.00019173,2]
[360117702,1746556239501,-165.91508587,0.00019173,2]
[360117703,1746556239511,-500.0,0.00019173,2]
[360117704,1746556239520,-500.0,0.00019173,2]
[360117705,1746556239530,-500.0,0.00019173,2]
[360117706,1746556239539,-500.0,0.00019173,2]
[360117707,1746556239549,-500.30224403,0.00019173,2]
[360117708,1746556239561,-500.34358694,0.00019173,2]